bitfinex-derivatives/quotes_SOLF0:USTF0_20250516
["timestamp","ask_amount","ask_price","bid_price","bid_amount"]
[1747407802235,61.3,172.1,172.08,5.8091]
[1747407802542,67.1087,172.1,172.07,5.8093]
[1747407802930,61.3,172.1,172.06,1.16238521]
[1747407803136,61.3,172.1,172.06,6.97238521]
[1747407803137,5.8092,172.09,172.06,6.97238521]
[1747407803346,61.3,172.1,172.06,1.16238521]
[1747407803544,5.8092,172.09,172.06,1.16238521]
[1747407803840,61.3,172.1,172.06,1.16238521]
[1747407804035,122.6,172.1,172.06,1.16238521]
[1747407804236,5.8096,172.08,172.06,1.16238521]
[1747407804429,122.6,172.1,172.06,1.16238521]
[1747407804634,122.6,172.1,171.99,61.3]
[1747407805435,122.6,172.1,171.96,501.82]
[1747407805636,122.6,172.1,171.96,563.12]
[1747407806345,122.6,172.1,171.96,61.3]
[1747407807145,122.6,172.1,172.0,5.8118]
[1747407807347,16.97364365,172.09,171.96,61.3]
[1747407807643,5.8126,171.99,171.95,5.8134]
[1747407807944,61.32,171.98,171.93,1.82]
[1747407808543,61.32,172.0,171.93,1.82]
[1747407808544,61.32,171.99,171.93,1.82]
[1747407808943,61.32,172.03,171.93,1.82]
[1747407809136,61.32,172.0,171.93,1.82]
[1747407809444,61.32,172.0,171.99,5.8123]
[1747407809946,61.32,172.0,171.87,61.3]
[1747407810144,61.32,172.0,171.9,3.7526]
[1747407810545,5.8131,171.97,171.9,3.7526]
[1747407810747,61.32,171.96,171.9,3.7526]
[1747407811649,61.32,171.96,171.92,5.8145]
[1747407812535,67.1336,171.96,171.93,5.8143]
[1747407812740,67.1336,171.96,171.9,1.844]
[1747407812741,61.32,171.96,171.9,1.844]
[1747407813147,61.32,171.96,171.9,7.6593]
[1747407813346,61.32,171.96,171.9,1.844]
[1747407813543,5.8143,171.94,171.91,5.815]
[1747407814352,5.8144,171.93,171.9,5.8153]
[1747407814648,61.34,171.92,171.87,61.32]
[1747407814851,61.34,171.92,171.91,5.815]
[1747407815046,61.34,171.96,171.87,61.32]
[1747407815243,61.34,171.96,171.87,122.66]
[1747407815442,61.34,171.96,171.95,5.8137]
[1747407816445,61.34,171.99,171.87,122.66]
[1747407816446,5.8115,172.02,171.91,61.34]
[1747407816651,61.34,172.01,171.92,1.8359]
[1747407817452,61.34,172.01,171.93,1.8241]
[1747407817644,61.34,172.02,171.93,1.8241]
[1747407817839,61.34,172.01,171.93,1.8241]
[1747407818753,5.8122,172.0,171.97,5.8128]
[1747407819056,5.8122,172.0,171.93,1.8241]
[1747407819558,5.8122,172.0,171.97,5.8128]
[1747407819853,61.34,171.99,171.93,1.8241]
[1747407822457,61.34,171.99,171.98,5.8127]
[1747407822855,61.34,171.99,171.93,1.8241]
[1747407823150,61.34,171.99,171.83,11.6351]
[1747407823351,5.8139,171.95,171.92,5.8145]
[1747407823549,61.34,171.94,171.89,61.34]
[1747407824054,61.34,171.94,171.87,1.9107]
[1747407825562,122.7,171.94,171.87,1.9107]
[1747407825860,5.8153,171.91,171.87,1.9107]
[1747407826059,122.7,171.94,171.87,1.9107]
[1747407826355,5.8148,171.92,171.87,1.9107]
[1747407826558,122.7,171.94,171.87,1.9107]
[1747407826759,5.8148,171.92,171.89,5.8157]
[1747407827159,122.7,171.94,171.89,5.8157]
[1747407827754,5.8151,171.91,171.88,5.816]
[1747407827960,61.34,171.9,171.83,61.36]
[1747407828455,61.34,171.9,171.86,5.8165]
[1747407828759,61.34,171.9,171.83,61.36]
[1747407829660,61.34,171.9,171.88,5.8159]
[1747407829854,61.34,171.9,171.83,61.36]
[1747407830059,61.36,171.94,171.83,61.36]
[1747407830261,61.34,171.93,171.84,61.34]
[1747407830457,61.34,171.93,171.92,5.8147]
[1747407830664,61.36,171.99,171.88,61.36]
[1747407830860,61.34,171.97,171.89,63.2742]
[1747407831162,61.34,171.97,171.96,5.8134]
[1747407832265,61.34,172.0,171.99,5.8121]
[1747407832461,65.2514,172.05,171.94,61.36]
[1747407832663,61.34,172.04,171.94,61.36]
[1747407833366,61.34,172.04,172.03,5.811]
[1747407834258,61.34,172.04,172.02,5.8113]
[1747407834562,61.34,172.04,171.99,61.36]
[1747407834765,61.34,172.04,171.96,61.36]
[1747407834961,122.7,172.04,171.96,61.36]
[1747407835158,5.8114,172.02,171.96,61.36]
[1747407835366,122.7,172.04,171.98,5.8124]
[1747407835569,5.8119,172.01,171.96,61.36]
[1747407835769,61.34,172.0,171.96,61.36]
[1747407835964,61.34,172.0,171.96,67.1731]
[1747407836169,67.1522,172.0,171.93,61.36]
[1747407837966,5.8124,171.99,171.93,61.36]
[1747407838162,61.34,172.0,171.96,5.8131]
[1747407838359,61.34,172.0,171.93,61.36]
[1747407838764,61.34,172.0,171.97,5.8129]
[1747407839273,61.34,172.0,171.93,61.36]
[1747407839662,5.8114,172.02,171.98,5.8124]
[1747407839868,61.32,172.01,171.98,5.8124]
[1747407840376,61.32,172.01,171.93,61.36]
[1747407841785,61.32,172.01,172.0,5.812]
[1747407842987,61.32,172.02,171.93,61.36]
[1747407843482,5.8118,172.01,171.93,61.36]
[1747407843886,61.32,172.02,171.93,61.36]
[1747407844590,61.32,172.02,171.9,65.1902]
[1747407844888,16.99769627,171.99,171.89,5.8156]
[1747407845081,122.64,171.98,171.89,5.8156]
[1747407845281,122.64,171.98,171.84,63.2153]
[1747407845492,5.8132,171.97,171.94,5.814]
[1747407845685,5.8132,171.97,171.84,63.2153]
[1747407845686,122.64,171.98,171.88,61.32]
[1747407845886,5.8131,171.97,171.88,61.32]
[1747407846081,122.64,171.98,171.88,61.32]
[1747407846686,122.64,171.98,171.95,5.8135]
[1747407846886,122.64,171.98,171.89,1.9583]
[1747407847086,61.32,171.98,171.97,5.813]
[1747407847386,61.32,171.99,171.93,61.32]
[1747407847595,61.32,171.99,171.94,1.8953]
[1747407847782,3.9378,172.07,171.94,1.8953]
[1747407847982,122.64,172.06,171.94,1.8953]
[1747407849285,5.8106,172.05,171.94,1.8953]
[1747407849589,122.64,172.06,171.94,1.8953]
[1747407849992,5.8107,172.04,172.01,5.8115]
[1747407850191,122.64,172.06,171.94,1.8953]
[1747407850586,61.32,172.06,171.94,1.8953]
[1747407850782,61.32,172.05,171.95,61.32]
[1747407851182,61.32,172.05,172.04,5.8104]
[1747407852493,67.1292,172.09,171.99,61.32]
[1747407852687,61.3,172.08,172.0,2.0052]
[1747407853096,61.3,172.08,172.06,5.8097]
[1747407853689,61.3,172.08,172.05,5.8103]
[1747407853889,61.3,172.08,172.0,2.0052]
[1747407854089,61.3,172.08,171.99,61.32]
[1747407854596,3.9294,172.13,171.99,61.32]
[1747407854597,61.3,172.12,171.99,122.62]
[1747407854790,61.3,172.1,171.99,122.62]
[1747407855698,61.3,172.11,171.99,122.62]
[1747407856196,61.3,172.11,172.09,5.809]
[1747407856587,502.3,172.16,172.04,61.3]
[1747407856792,122.6,172.15,172.05,1.9904]
[1747407856993,61.3,172.14,172.05,5.688]
[1747407857393,61.3,172.15,172.05,5.688]
[1747407857599,61.3,172.14,172.05,5.688]
[1747407858107,61.3,172.14,172.12,5.8078]
[1747407858793,61.3,172.18,172.13,5.8076]
[1747407858998,61.28,172.17,172.08,61.3]
[1747407859198,5.8064,172.17,172.08,61.3]
[1747407859401,61.28,172.17,172.14,5.8071]
[1747407859898,61.28,172.17,172.08,61.3]
[1747407860297,5.8072,172.15,172.11,5.808]
[1747407860495,61.28,172.17,172.05,5.688]
[1747407860694,61.28,172.17,172.06,61.28]
[1747407860894,5.8083,172.11,172.08,5.809]
[1747407861394,61.28,172.12,172.06,61.28]
[1747407862293,5.8068,172.16,172.06,61.28]
[1747407862494,61.26,172.15,172.07,1.8719]
[1747407862896,61.26,172.15,172.12,5.8078]
[1747407863101,61.26,172.15,172.07,1.8719]
[1747407863604,5.8073,172.14,172.07,1.8719]
[1747407863901,61.26,172.15,172.07,1.8719]
[1747407864101,61.26,172.15,172.09,5.8089]
[1747407864303,61.26,172.15,172.06,61.28]
[1747407864501,5.8077,172.13,172.06,61.28]
[1747407865002,5.8077,172.13,172.09,5.8088]
[1747407865191,5.8077,172.13,172.06,61.28]
[1747407865509,5.8074,172.14,172.06,61.28]
[1747407865901,61.26,172.15,172.06,61.28]
[1747407866403,61.26,172.15,172.11,5.8082]
[1747407866623,61.26,172.15,172.06,61.28]
[1747407866624,5.8075,172.14,172.06,61.28]
[1747407866904,61.26,172.15,172.06,61.28]
[1747407867702,5.8073,172.14,172.11,5.8081]
[1747407867905,61.26,172.15,172.06,61.28]
[1747407868405,5.8074,172.14,172.11,5.8081]
[1747407868608,61.26,172.15,172.06,61.28]
[1747407869505,61.26,172.15,172.09,5.8088]
[1747407869700,80.10129627,172.15,172.03,61.28]
[1747407870003,63.1036,172.15,172.04,5.8105]
[1747407870307,63.1036,172.15,172.0,61.28]
[1747407871205,1.8436,172.15,172.0,122.54]
[1747407871395,122.5,172.14,172.0,122.54]
[1747407871595,122.5,172.14,172.12,5.8079]
[1747407872502,122.5,172.14,172.11,5.8082]
[1747407873008,122.5,172.14,172.06,1.8697]
[1747407873209,5.8085,172.11,172.06,1.8697]
[1747407873508,61.26,172.1,172.06,1.8697]
[1747407874108,61.26,172.1,172.09,5.809]
[1747407875612,61.26,172.1,172.08,5.8092]
[1747407876008,61.26,172.1,172.06,1.8697]
[1747407876405,61.26,172.1,172.03,1.8689]
[1747407876801,61.26,172.1,172.09,5.809]
[1747407877527,16.99769627,172.21,172.14,5.8073]
[1747407877713,122.5,172.2,172.07,61.24]
[1747407877912,61.24,172.2,172.08,1.9112]
[1747407878410,5.8068,172.16,172.08,1.9112]
[1747407878607,61.26,172.15,172.1,5.8086]
[1747407878914,67.067,172.15,172.08,1.9112]
[1747407879317,67.067,172.15,172.12,5.8077]
[1747407879520,61.26,172.15,172.08,1.9112]
[1747407880428,61.26,172.15,172.14,5.8073]
[1747407881014,61.24,172.16,172.14,5.8073]
[1747407881211,61.24,172.15,172.14,5.8073]
[1747407881412,61.24,172.2,172.08,1.9112]
[1747407881808,61.24,172.19,172.09,1.9426]
[1747407883017,1.9807,172.26,172.1,78.23769627]
[1747407883315,67.0443,172.23,172.2,5.8051]
[1747407883714,61.24,172.22,172.21,5.8047]
[1747407884416,61.24,172.22,172.2,5.8052]
[1747407884816,61.24,172.22,172.15,61.24]
[1747407885313,61.24,172.22,172.16,1.8774]
[1747407885617,67.0441,172.24,172.21,5.8047]
[1747407885817,61.24,172.23,172.16,1.8774]
[1747407886421,61.22,172.27,172.16,1.8774]
[1747407886619,61.24,172.26,172.25,5.8036]
[1747407886921,16.99769627,172.38,172.19,122.46]
[1747407887219,16.99769627,172.38,172.26,5.803]
[1747407887220,127.47679471,172.37,172.26,5.803]
[1747407887420,127.47679471,172.37,172.22,61.22]
[1747407888110,61.24,172.36,172.22,61.22]
[1747407888517,5.8016,172.31,172.22,61.22]
[1747407888707,61.22,172.3,172.28,5.8025]
[1747407889318,61.22,172.3,172.26,5.803]
[1747407889616,61.22,172.3,172.22,61.22]
[1747407889824,61.22,172.3,172.24,5.8039]
[1747407890018,61.22,172.3,172.2,1.9538]
[1747407890422,61.22,172.3,172.24,5.8037]
[1747407890616,61.22,172.3,172.2,1.9538]
[1747407890815,5.8028,172.28,172.2,1.9538]
[1747407891121,61.22,172.3,172.2,1.9538]
[1747407891322,5.8026,172.29,172.2,1.9538]
[1747407891625,61.22,172.3,172.2,1.9538]
[1747407891925,61.22,172.3,172.2,63.2938]
[1747407892612,61.22,172.3,172.25,5.8033]
[1747407892816,5.8029,172.27,172.2,63.2938]
[1747407893017,61.32,172.26,172.2,1.9538]
[1747407893721,61.32,172.26,172.25,5.8036]
[1747407894729,78.19769627,172.36,172.2,18.95149627]
[1747407895030,61.36,172.35,172.21,122.56]
[1747407895326,5.8008,172.34,172.3,5.8017]
[1747407895624,61.36,172.35,172.25,61.2]
[1747407895824,5.8015,172.32,172.29,5.802]
[1747407896028,61.38,172.31,172.25,61.2]
[1747407896221,61.4,172.34,172.26,1.8636]
[1747407897526,5.8007,172.34,172.31,5.8013]
[1747407897721,61.38,172.33,172.26,1.8636]
[1747407897928,61.38,172.34,172.26,1.8636]
[1747407898317,61.38,172.34,172.26,3.7422]
[1747407898724,61.38,172.34,172.33,5.8009]
[1747407899030,61.64,172.35,172.29,61.2]
[1747407899225,61.64,172.35,172.33,5.8009]
[1747407899526,61.62,172.34,172.29,61.2]
[1747407899828,61.62,172.34,172.33,5.8009]
[1747407900020,61.62,172.34,172.26,64.9422]
[1747407900422,61.62,172.34,172.33,5.8009]
[1747407900822,61.2,172.36,172.26,126.6822]
[1747407901018,122.94,172.36,172.26,126.6822]
[1747407901432,5.801,172.33,172.3,5.8018]
[1747407901727,61.72,172.32,172.3,5.8018]
[1747407902231,61.72,172.32,172.31,5.8016]
[1747407902925,61.72,172.32,172.26,64.9422]
[1747407903427,61.78,172.36,172.26,64.9422]
[1747407903760,61.78,172.36,172.26,126.7222]
[1747407904423,67.5799,172.36,172.26,126.7222]
[1747407904624,61.78,172.36,172.26,126.7222]
[1747407905627,61.78,172.36,172.27,1.8368]
[1747407906328,61.64,172.35,172.27,1.8368]
[1747407907132,61.78,172.34,172.27,1.8368]
[1747407907630,62.02,172.35,172.27,1.8368]
[1747407907934,62.02,172.35,172.34,5.8006]
[1747407908125,62.0,172.36,172.27,1.8368]
[1747407908434,62.0,172.36,172.35,5.8002]
[1747407908622,62.0,172.36,172.27,1.8368]
[1747407909133,67.8002,172.36,172.27,1.8368]
[1747407909339,62.0,172.36,172.27,1.8368]
[1747407909735,62.0,172.36,172.34,5.8003]
[1747407909927,62.0,172.36,172.27,1.8368]
[1747407910732,62.0,172.36,172.26,125.0636]
[1747407910934,63.9593,172.36,172.29,5.802]
[1747407911129,63.9593,172.36,172.26,63.0636]
[1747407911330,63.9593,172.36,172.31,5.8013]
[1747407911531,63.9593,172.36,172.26,63.0636]
[1747407912134,5.8006,172.34,172.26,63.0636]
[1747407912435,63.9593,172.36,172.29,5.802]
[1747407912938,62.0,172.36,172.26,63.0636]
[1747407914036,5.8008,172.34,172.3,5.8018]
[1747407914541,5.8008,172.34,172.31,5.8015]
[1747407914837,62.0,172.36,172.26,63.0636]
[1747407915040,61.98,172.35,172.34,5.8003]
[1747407915731,61.98,172.35,172.26,63.0636]
[1747407915732,61.98,172.35,172.33,5.8009]
[1747407915939,61.98,172.35,172.26,63.0636]
[1747407916234,62.0,172.34,172.26,63.0636]
[1747407917236,62.0,172.34,172.31,5.8014]
[1747407917639,62.0,172.34,172.26,63.0636]
[1747407918231,61.64,172.33,172.26,63.0636]
[1747407918438,5.8018,172.31,172.28,5.8025]
[1747407918633,61.9,172.3,172.22,61.62]
[1747407918833,61.9,172.3,172.28,5.8025]
[1747407919036,61.9,172.3,172.22,61.62]
[1747407919336,5.8026,172.28,172.24,5.8037]
[1747407919535,61.9,172.3,172.22,61.62]
[1747407919840,5.8026,172.28,172.25,5.8034]
[1747407920141,61.62,172.29,172.22,61.62]
[1747407921841,61.62,172.29,172.23,5.8041]
[1747407922142,61.62,172.29,172.22,61.62]
[1747407922376,5.8027,172.28,172.24,5.8039]
[1747407922943,5.8029,172.27,172.23,5.8041]
[1747407923142,61.88,172.26,172.23,5.8041]
[1747407923342,61.88,172.26,172.18,61.64]
[1747407923544,61.88,172.26,172.23,5.8042]
[1747407923743,61.88,172.26,172.18,61.64]
[1747407924139,61.88,172.26,172.22,5.8044]
[1747407924340,61.88,172.26,172.18,61.64]
[1747407924540,67.6834,172.26,172.22,5.8043]
[1747407924743,61.88,172.26,172.18,61.64]
[1747407925045,61.88,172.26,172.23,5.804]
[1747407925343,61.88,172.26,172.18,61.64]
[1747407925746,61.88,172.26,172.24,5.8037]
[1747407926244,61.88,172.26,172.18,61.64]
[1747407926439,61.64,172.25,172.18,61.64]
[1747407926940,5.8042,172.24,172.2,5.805]
[1747407927443,5.8042,172.24,172.18,61.64]
[1747407927668,5.8042,172.24,172.21,5.8048]
[1747407927946,67.4437,172.25,172.18,61.64]
[1747407928845,61.64,172.25,172.18,61.64]
[1747407929544,5.8047,172.22,172.15,14.54656]
[1747407929746,61.76,172.21,172.15,12.53466]
[1747407930135,67.5652,172.21,172.17,5.8061]
[1747407930549,67.5652,172.21,172.15,12.53466]
[1747407930741,5.8052,172.2,172.15,18.34146]
[1747407930937,78.78760225,172.2,172.06,61.86]
[1747407931241,1.9797,172.19,172.05,1.9301]
[1747407931848,1.8878,172.18,172.05,1.9301]
[1747407932050,61.86,172.17,172.05,1.9301]
[1747407932346,61.86,172.16,172.05,1.9301]
[1747407933051,61.86,172.15,172.05,1.9301]
[1747407933549,61.86,172.15,172.08,5.8093]
[1747407933749,61.86,172.15,172.05,1.9301]
[1747407934446,5.8078,172.13,172.07,5.8094]
[1747407935137,61.88,172.12,172.07,5.8094]
[1747407935344,61.88,172.12,172.08,5.8092]
[1747407935345,61.76,172.11,172.08,5.8092]
[1747407935649,61.76,172.11,172.02,63.7238]
[1747407935850,61.76,172.11,172.03,3.6662]
[1747407936148,61.76,172.11,172.08,5.8091]
[1747407936350,61.76,172.11,172.03,1.8531]
[1747407936554,61.76,172.11,172.08,5.8093]
[1747407937051,61.76,172.11,172.09,5.8089]
[1747407937251,61.76,172.11,172.03,63.6331]
[1747407938190,61.76,172.11,172.08,5.8095]
[1747407938755,61.76,172.11,172.09,5.8093]
[1747407938954,61.76,172.11,172.03,65.5606]
[1747407939145,61.76,172.11,172.04,61.88]
[1747407939653,67.5684,172.11,172.06,5.81]
[1747407939957,61.76,172.11,172.04,61.88]
[1747407940368,61.76,172.11,172.03,1.8531]
[1747407941649,5.809,172.09,172.04,5.8104]
[1747407942052,61.76,172.11,172.03,1.8531]
[1747407942356,61.76,172.11,172.06,5.8098]
[1747407942661,67.5683,172.11,172.06,5.8098]
[1747407943052,61.76,172.11,172.03,1.8531]
[1747407943251,5.8098,172.07,172.0,61.9]
[1747407943453,67.4498,172.07,172.0,61.9]
[1747407943654,61.64,172.07,172.0,61.9]
[1747407944061,61.64,172.07,172.04,5.8104]
[1747407944452,61.64,172.07,172.0,61.9]
[1747407944656,61.64,172.07,172.05,5.8101]
[1747407944953,61.64,172.07,172.0,61.9]
[1747407945154,61.64,172.07,172.03,5.8107]
[1747407945357,61.64,172.07,172.0,61.9]
[1747407945859,61.64,172.07,172.02,5.8113]
[1747407946056,61.92,172.12,172.01,61.54]
[1747407946255,61.54,172.13,172.01,61.54]
[1747407946455,61.54,172.13,172.09,5.8089]
[1747407946650,67.3476,172.13,172.06,61.92]
[1747407946860,67.3476,172.13,172.08,5.809]
[1747407947261,61.54,172.13,172.06,61.92]
[1747407947769,61.54,172.13,172.08,5.8091]
[1747407947962,67.3479,172.13,172.08,5.8091]
[1747407948662,61.54,172.13,172.06,5.8097]
[1747407949160,5.8085,172.11,172.06,5.8097]
[1747407949363,61.54,172.13,172.07,5.8095]
[1747407949964,5.8081,172.12,172.07,5.8095]
[1747407950564,5.8082,172.11,172.05,67.73]
[1747407950759,5.8082,172.11,172.05,61.92]
[1747407951166,5.8082,172.11,172.05,67.7302]
[1747407951469,61.54,172.13,172.0,10.60224591]
[1747407951470,72.14224591,172.13,172.0,10.60224591]
[1747407951671,72.14224591,172.13,172.04,61.92]
[1747407951870,61.54,172.13,172.04,61.92]
[1747407952070,61.42,172.14,172.04,61.92]
[1747407952267,61.42,172.14,172.05,3.7611]
[1747407952468,67.7268,172.16,172.05,3.7611]
[1747407952671,61.92,172.16,172.05,3.7611]
[1747407952975,61.92,172.16,172.06,10.60224591]
[1747407953173,61.42,172.19,172.07,61.42]
[1747407953373,61.42,172.19,172.12,5.8076]
[1747407953575,5.8061,172.18,172.12,5.8076]
[1747407953966,123.32,172.2,172.14,5.8072]
[1747407954276,61.4,172.23,172.12,72.52224591]
[1747407954478,17.399,172.37,172.15,10.60224591]
[1747407954479,63.7862,172.28,172.15,10.60224591]
[1747407954778,63.3062,172.28,172.16,123.3]
[1747407955272,5.8033,172.26,172.2,5.8052]
[1747407955468,5.8033,172.26,172.19,61.9]
[1747407955672,63.3062,172.28,172.19,61.9]
[1747407955870,63.3062,172.28,172.13,22.62019823]
[1747407956176,63.3062,172.28,172.14,123.42]
[1747407956477,63.3062,172.28,172.17,5.8061]
[1747407956676,63.3062,172.28,172.18,61.9]
[1747407957078,5.8042,172.23,172.18,61.9]
[1747407957583,5.8051,172.21,172.17,61.9]
[1747407957779,5.8051,172.21,172.13,5.6922]
[1747407958078,5.8051,172.21,172.14,123.34]
[1747407958382,5.8053,172.2,172.14,129.147]
[1747407958575,61.9,172.25,172.14,61.9]
[1747407959367,61.9,172.25,172.16,5.8063]
[1747407959567,61.9,172.25,172.13,5.6922]
[1747407959781,61.9,172.25,172.14,123.28]
[1747407959980,5.8054,172.2,172.14,123.28]
[1747407960173,61.36,172.22,172.14,123.28]
[1747407960481,61.36,172.22,172.14,129.087]
[1747407960774,5.8053,172.2,172.14,129.087]
[1747407960980,122.6,172.28,172.14,123.28]
[1747407961372,122.6,172.28,172.13,5.6922]
[1747407961599,122.6,172.28,172.16,5.8063]
[1747407962078,122.6,172.28,172.16,61.3]
[1747407962279,61.3,172.31,172.16,61.3]
[1747407962585,5.8013,172.32,172.18,16.92799823]
[1747407962781,65.1127,172.35,172.19,61.38]
[1747407962982,65.1127,172.35,172.2,61.3]
[1747407963181,65.1127,172.35,172.2,1.8288]
[1747407963383,82.04069823,172.35,172.21,126.6581]
[1747407963778,82.04069823,172.35,172.21,3.9781]
[1747407963979,65.1127,172.35,172.22,61.3]
[1747407964686,3.7327,172.35,172.23,122.64]
[1747407964888,5.8021,172.3,172.24,5.8038]
[1747407965185,61.34,172.34,172.24,122.62]
[1747407965385,5.8021,172.3,172.24,61.3]
[1747407965588,61.34,172.34,172.24,61.3]
[1747407965888,5.8012,172.32,172.25,5.8032]
[1747407966483,61.36,172.35,172.26,5.8031]
[1747407966685,61.36,172.35,172.24,61.3]
[1747407967185,5.8017,172.31,172.25,5.8034]
[1747407967383,11.5938,172.45,172.24,501.64]
[1747407967585,65.1911,172.49,172.33,5.8006]
[1747407967781,65.1911,172.49,172.34,122.58]
[1747407968084,65.1911,172.49,172.35,61.28]
[1747407968284,3.8911,172.49,172.35,61.28]
[1747407968487,123.61268352,172.48,172.35,61.28]
[1747407968686,5.7987,172.4,172.35,61.28]
[1747407968887,61.28,172.43,172.33,5.8005]
[1747407969082,61.28,172.43,172.31,5.8011]
[1747407969283,61.28,172.43,172.32,122.54]
[1747407969588,61.28,172.43,172.33,61.28]
[1747407970388,5.8004,172.35,172.27,1.9308]
[1747407970592,61.28,172.43,172.3,5.8016]
[1747407971287,16.92799823,172.42,172.31,61.28]
[1747407971486,16.92799823,172.42,172.29,63.0945]
[1747407971487,18.84939823,172.42,172.29,63.0945]
[1747407971693,1.9106,172.41,172.29,68.8964]
[1747407971990,1.9106,172.41,172.29,63.0945]
[1747407972191,61.28,172.4,172.29,1.8145]
[1747407972388,61.24,172.39,172.29,63.0745]
[1747407972789,5.7998,172.36,172.29,63.0745]
[1747407973093,61.28,172.39,172.29,63.0745]
[1747407974095,5.8,172.36,172.29,68.8766]
[1747407974290,61.28,172.39,172.29,68.8766]
[1747407974494,61.28,172.39,172.29,63.0745]
[1747407974793,5.7996,172.37,172.3,5.8015]
[1747407974989,5.7996,172.37,172.29,63.0745]
[1747407975186,5.7991,172.39,172.32,5.8009]
[1747407975389,5.7991,172.39,172.33,61.26]
[1747407976297,5.7992,172.38,172.33,61.26]
[1747407976694,61.24,172.41,172.33,67.0608]
[1747407976994,61.24,172.41,172.33,61.26]
[1747407977389,5.799,172.39,172.33,61.26]
[1747407977585,61.26,172.43,172.33,61.26]
[1747407977787,61.24,172.42,172.34,1.8604]
[1747407977987,5.7987,172.4,172.34,1.8604]
[1747407978204,61.24,172.42,172.34,1.8604]
[1747407978589,5.7981,172.41,172.34,1.8604]
[1747407979195,61.22,172.44,172.34,1.8604]
[1747407979587,61.22,172.44,172.35,61.26]
[1747407979793,61.26,172.51,172.36,122.48]
[1747407980032,122.48,172.51,172.37,3.8286]
[1747407980191,5.7967,172.46,172.37,3.8286]
[1747407980497,122.48,172.51,172.37,3.8286]
[1747407981298,122.48,172.51,172.39,5.7988]
[1747407981503,122.48,172.51,172.4,122.46]
[1747407981793,122.48,172.51,172.39,5.7988]
[1747407981997,122.48,172.51,172.4,61.24]
[1747407982203,122.48,172.51,172.4,67.0384]
[1747407983391,122.48,172.51,172.41,5.7981]
[1747407983897,5.7964,172.46,172.41,5.7981]
[1747407984101,122.48,172.51,172.4,61.24]
[1747407984695,5.7966,172.46,172.4,67.0383]
[1747407984902,61.2,172.5,172.4,61.24]
[1747407985292,5.7961,172.47,172.42,5.7977]
[1747407985491,61.2,172.5,172.4,61.24]
[1747407985908,5.7958,172.48,172.42,5.7976]
[1747407986699,5.7961,172.47,172.42,5.7977]